fUSD/lending_fUSD_20250204
["ID","MTS","AMOUNT","RATE_DAILY","PERIOD"]
[351629327,1738673440267,-500.0,9.987e-05,2]
[351629328,1738673440278,-500.0,9.987e-05,2]
[351629329,1738673440289,-500.0,9.987e-05,2]
[351629330,1738673440299,-500.0,9.987e-05,2]
[351629331,1738673440309,-661.71,9.987e-05,2]
[351629332,1738673440325,-500.0,9.987e-05,2]
[351629333,1738673440335,-948.54,9.987e-05,2]
[351629334,1738673440346,-562.36,9.987e-05,2]
[351629335,1738673440356,-500.0,9.987e-05,2]
[351629336,1738673440366,-500.0,9.987e-05,2]
[351629337,1738673440377,-500.0,9.987e-05,2]
[351629338,1738673440387,-500.0,9.987e-05,2]
[351629339,1738673440397,-500.0,9.988e-05,2]
[351629340,1738673440409,-500.0,9.988e-05,2]
[351629341,1738673440419,-500.0,9.988e-05,2]
[351629342,1738673440429,-500.0,9.988e-05,2]
[351629343,1738673440439,-500.0,9.988e-05,2]
[351629344,1738673440449,-1000.0,9.988e-05,2]
[351629345,1738673440459,-500.0,9.988e-05,2]
[351629346,1738673440469,-547.94,9.988e-05,2]
[351629347,1738673440479,-701.02,9.988e-05,2]
[351629348,1738673440489,-292.38206731,9.991e-05,2]
[351629349,1738673440498,-7421.2334392,9.992e-05,2]
[351629350,1738673440508,-1571.119204,9.992e-05,2]
[351629351,1738673440518,-1676.245517,9.992e-05,2]
[351629352,1738673440527,-2191.3793697,9.992e-05,2]
[351629353,1738673440537,-150.0,9.999e-05,2]
[351629354,1738673440547,-660.07,9.999e-05,2]
[351629355,1738673440556,-668.21219216,9.999e-05,2]
[351629356,1738673440569,-530.0,0.0001,2]
[351629357,1738673440579,-23533.54624057,0.0001,2]
[351629358,1738673440605,-14426.29258008,0.0001,2]
[351629359,1738673440616,-10878.68680295,0.0001,2]
[351629360,1738673440706,-2067.21978566,0.0001,2]
[351629361,1738673440718,-950.42895697,0.0001,2]
[351629362,1738673440729,-6910.2,0.0001,2]
[351629363,1738673440741,-3003.59978012,0.0001,2]
[351629364,1738673440959,-500.0,9.712e-05,2]
[351629365,1738673440969,-500.0,9.75e-05,2]
[351629366,1738673440977,-500.0,9.849e-05,2]
[351629367,1738673440986,-12569.08197756,0.0001,2]
[351629368,1738673440998,-984.83079182,0.0001,2]
[351629369,1738673441011,-572.28668633,0.0001,2]
[351629370,1738673441022,-2156.03251395,0.0001,2]
[351629371,1738673441033,-16051.71560604,0.0001,2]
[351629372,1738673441043,-2509.54569102,0.0001,2]
[351629373,1738673441054,-668.622,0.0001,2]
[351629374,1738673441065,-277.32348794,0.0001,2]
[351629375,1738673441078,-722.19529931,0.0001,2]
[351629376,1738673441090,-1323.0,0.0001,2]
[351629377,1738673441108,-1695.03854347,0.0001,2]
[351629378,1738673441119,-31408.84759222,0.0001,2]
[351629379,1738673441131,-880.88012,0.0001,2]
[351629380,1738673441142,-2989071.42331993,0.0001,2]
[351629381,1738673441167,-472.70084229,9.986e-05,2]
[351629382,1738673441176,-2827.67057109,0.0001,2]
[351629383,1738673441188,-122314.38459109,0.0001,2]
[351629384,1738673441199,-2240.91721747,0.0001,2]
[351629385,1738673441211,-472.86339972,0.0001,2]
[351629386,1738673441223,-345.16037055,0.0001,2]
[351629387,1738673441235,-49618.96531484,0.0001,2]
[351629388,1738673441247,-304.33735203,0.0001,2]
[351629389,1738673441259,-1121.37665367,0.0001,2]
[351629397,1738673442893,-279.438,9.379e-05,2]
[351629398,1738673442902,-1485.45260137,0.0001,2]
[351629399,1738673442914,-1201.98778846,0.0001,2]
[351629400,1738673442925,-6855.90067227,0.0001,2]
[351629401,1738673442936,-1132.58449139,0.0001,2]
[351629402,1738673442950,-1550.82765626,0.0001,2]
[351629403,1738673442962,-1469.6840553,0.0001,2]
[351629404,1738673442973,-4163.72940921,0.0001,2]
[351629405,1738673443011,-782.56676118,0.0001,2]
[351629406,1738673443023,-1359.61261136,0.0001,2]
[351629407,1738673443073,-310.000015,0.0001,2]
[351629408,1738673443085,-4415.71371553,0.0001,2]
[351629409,1738673443132,-773.30945126,0.0001,2]
[351629410,1738673443144,-21533.27470492,0.0001,2]
[351629411,1738673443156,-10377.31968114,0.0001,2]
[351629412,1738673443198,-8746.08535037,0.0001,2]
[351629413,1738673443209,-11116.34384161,0.0001,2]
[351629416,1738673445839,-500.0,9.712e-05,2]
[351629417,1738673445849,-500.0,9.712e-05,2]
[351629418,1738673445859,-500.0,9.75e-05,2]
[351629419,1738673445869,-500.0,9.75e-05,2]
[351629420,1738673445879,-500.0,9.849e-05,2]
[351629421,1738673445888,-500.0,9.849e-05,2]
[351629422,1738673445898,-411.1929608,9.986e-05,2]
[351629423,1738673445907,-500.0,9.986e-05,2]
[351629424,1738673445919,-915781.14979359,0.0001,2]
[351629425,1738673445929,-214.5061734,0.0001,2]
[351629426,1738673445938,-2620.14905494,0.0001,2]
[351629427,1738673445948,-332.30198255,0.0001,2]
[351629428,1738673445958,-5240.26546215,0.0001,2]
[351629429,1738673445967,-3004.08636251,0.0001,2]
[351629430,1738673445977,-15656.40673619,0.0001,2]
[351629431,1738673445986,-58861.94070909,0.0001,2]
[351629432,1738673445998,-788.14969666,0.0001,2]
[351629433,1738673446014,-64353.10000089,0.0001,2]
[351629434,1738673446025,-512.14193356,0.0001,2]
[351629435,1738673446036,-25267.79999997,0.0001,2]
[351629436,1738673446047,-1000.0,0.0001,2]
[351629437,1738673446092,-3639.43722542,0.0001,2]
[351629438,1738673446103,-84262.14361795,0.0001,2]
[351629439,1738673446142,-3308.77977179,0.0001,2]
[351629446,1738673940467,557.0,0.00018,60]
[351629449,1738674072941,1025.49844806,0.000189,120]
[351629452,1738674397136,-150.94493669,8.219e-05,2]
[351629463,1738674631847,-537.44719657,8.219e-05,2]
[351629464,1738674631866,-1024.84786674,8.219e-05,2]
[351629465,1738674631877,-500.0,8.263e-05,2]
[351629466,1738674631886,-397.23,8.395e-05,2]
[351629467,1738674631896,-75.13948121,8.395e-05,2]
[351629468,1738674631943,-74.86051879,8.395e-05,2]
[351629469,1738674631953,-199.87486371,8.479e-05,2]
[351629470,1738674631965,-300.12513629,8.479e-05,2]
[351629471,1738674631974,-74.78347021,8.847e-05,2]
[351629472,1738674631989,-180.50652979,8.847e-05,2]
[351629473,1738674631998,-87.35447021,8.849e-05,2]
[351629474,1738674632011,-87.72552979,8.849e-05,2]
[351629475,1738674632022,-410.12547011,8.94e-05,2]
[351629476,1738674632035,-589.87452989,8.94e-05,2]
[351629477,1738674632045,-101.61947056,9.041e-05,2]
[351629478,1738674632058,-284.4865955,9.041e-05,2]
[351629479,1738674632070,-113.89393394,9.041e-05,2]
[351629480,1738674632082,-154.293369,9.234e-05,2]
[351629481,1738674632092,-25.81069706,9.321e-05,2]
[351629482,1738674632103,-124.18930294,9.321e-05,2]
[351629483,1738674632113,-183.90704346,9.321e-05,2]
[351629484,1738674632124,-292.13799996,9.321e-05,2]
[351629485,1738674632135,-288.945,9.321e-05,2]
[351629486,1738674632146,-263.77,9.321e-05,2]
[351629487,1738674632157,-342.94286978,9.321e-05,2]
[351629488,1738674632169,-712.02367317,9.321e-05,2]
[351629489,1738674632180,-354.92370002,9.321e-05,2]
[351629490,1738674632192,-1472.34971361,9.321e-05,2]
[351629491,1738674632202,-1108.0,9.321e-05,2]
[351629492,1738674632212,-150.0,9.378e-05,2]
[351629493,1738674632221,-252.76,9.379e-05,2]
[351629494,1738674632230,-200.93,9.379e-05,2]
[351629495,1738674632239,-154.729,9.379e-05,2]
[351629496,1738674632249,-568.0,9.379e-05,2]
[351629497,1738674632259,-574.15,9.379e-05,2]
[351629498,1738674632269,-508.1,9.38e-05,2]
[351629499,1738674632278,-397.23,9.445e-05,2]
[351629500,1738674632288,-500.0,9.562e-05,2]
[351629501,1738674632298,-1000.0,9.613e-05,2]
[351629502,1738674632308,-1000.0,9.7e-05,2]
[351629503,1738674632318,-500.0,9.712e-05,2]
[351629504,1738674632332,-500.0,9.712e-05,2]
[351629505,1738674632342,-500.0,9.712e-05,2]
[351629506,1738674632352,-241.54304862,9.712e-05,2]
[351629507,1738674632362,-822.376,9.723e-05,2]
[351629508,1738674632372,-500.0,9.75e-05,2]
[351629509,1738674632382,-500.0,9.75e-05,2]
[351629510,1738674632391,-500.0,9.75e-05,2]
[351629512,1738674632401,-500.0,9.75e-05,2]
[351629514,1738674632411,-175.20901935,9.75e-05,2]
[351629518,1738674632438,-324.79098065,9.75e-05,2]
[351629520,1738674632448,-500.0,9.75e-05,2]
[351629522,1738674632458,-500.0,9.75e-05,2]
[351629524,1738674632468,-500.0,9.75e-05,2]
[351629526,1738674632477,-500.0,9.75e-05,2]
[351629527,1738674632487,-500.0,9.75e-05,2]
[351629530,1738674632497,-639.94,9.75e-05,2]
[351629532,1738674632506,-500.0,9.75e-05,2]
[351629534,1738674632516,-500.0,9.75e-05,2]
[351629535,1738674632525,-500.0,9.75e-05,2]
[351629537,1738674632534,-279.4217119,9.75e-05,2]
[351629539,1738674632544,-500.0,9.75e-05,2]
[351629541,1738674632553,-500.0,9.75e-05,2]
[351629543,1738674632563,-500.0,9.75e-05,2]
[351629545,1738674632572,-500.0,9.75e-05,2]
[351629547,1738674632583,-150.3449016,9.8e-05,2]
[351629549,1738674632592,-1000.0,9.8e-05,2]
[351629551,1738674632602,-500.0,9.849e-05,2]
[351629554,1738674632612,-500.0,9.849e-05,2]
[351629555,1738674632622,-500.0,9.849e-05,2]
[351629558,1738674632631,-500.0,9.887e-05,2]
[351629559,1738674632641,-500.0,9.887e-05,2]
[351629560,1738674632650,-500.0,9.887e-05,2]
[351629561,1738674632659,-500.0,9.887e-05,2]
[351629562,1738674632669,-500.0,9.887e-05,2]
[351629563,1738674632679,-427.01,9.887e-05,2]
[351629564,1738674632688,-500.0,9.887e-05,2]
[351629565,1738674632698,-500.0,9.887e-05,2]
[351629566,1738674632708,-500.0,9.887e-05,2]
[351629567,1738674632718,-500.0,9.887e-05,2]
[351629568,1738674632727,-500.0,9.887e-05,2]
[351629569,1738674632738,-500.0,9.887e-05,2]
[351629570,1738674632748,-168.55838144,9.887e-05,2]
[351629571,1738674632759,-331.44161856,9.887e-05,2]
[351629572,1738674632769,-318.37940067,9.887e-05,2]
[351629670,1738674637778,-181.62059933,9.887e-05,2]
[351629672,1738674637788,-500.0,9.887e-05,2]
[351629674,1738674637798,-500.0,9.887e-05,2]
[351629676,1738674637807,-1000.0,9.9e-05,2]
[351629678,1738674637817,-636.60106932,9.973e-05,2]
[351629680,1738674637826,-500.0,9.986e-05,2]
[351629682,1738674637837,-500.0,9.986e-05,2]
[351629684,1738674637847,-500.0,9.986e-05,2]
[351629686,1738674637857,-500.0,9.991e-05,2]
[351629688,1738674637866,-500.0,9.991e-05,2]
[351629690,1738674637875,-271.89718348,9.991e-05,2]
[351629692,1738674637885,-500.0,9.991e-05,2]
[351629694,1738674637894,-500.0,9.991e-05,2]
[351629696,1738674637903,-634.05498052,9.991e-05,2]
[351629698,1738674637913,-500.0,9.991e-05,2]
[351629700,1738674637922,-500.0,9.991e-05,2]
[351629702,1738674637931,-500.0,9.991e-05,2]
[351629704,1738674637940,-500.0,9.991e-05,2]
[351629706,1738674637950,-500.0,9.991e-05,2]
[351629708,1738674637960,-468.38877581,9.991e-05,2]
[351629710,1738674637969,-500.0,9.991e-05,2]
[351629712,1738674637978,-500.0,9.991e-05,2]
[351629714,1738674637989,-500.0,9.991e-05,2]
[351629716,1738674638001,-500.0,9.991e-05,2]
[351629718,1738674638010,-500.0,9.991e-05,2]
[351629720,1738674638020,-500.0,9.991e-05,2]
[351629722,1738674638030,-500.0,9.991e-05,2]
[351629724,1738674638040,-500.0,9.991e-05,2]
[351629726,1738674638049,-500.0,9.991e-05,2]
[351629728,1738674638059,-500.0,9.991e-05,2]
[351629730,1738674638069,-500.0,9.991e-05,2]
[351629732,1738674638079,-547.77,9.991e-05,2]
[351629734,1738674638093,-228.43744121,9.991e-05,2]
[351629736,1738674638102,-500.0,9.991e-05,2]
[351629738,1738674638111,-500.0,9.991e-05,2]
[351629740,1738674638121,-500.0,9.991e-05,2]
[351629742,1738674638130,-500.0,9.991e-05,2]
[351629744,1738674638140,-500.0,9.991e-05,2]
[351629746,1738674638149,-500.0,9.991e-05,2]
[351629748,1738674638159,-500.0,9.991e-05,2]
[351629750,1738674638168,-500.0,9.991e-05,2]
[351629752,1738674638177,-500.0,9.991e-05,2]
[351629754,1738674638186,-500.0,9.991e-05,2]
[351629756,1738674638195,-500.0,9.991e-05,2]
[351629758,1738674638204,-500.0,9.991e-05,2]
[351629760,1738674638214,-2474.82,9.991e-05,2]
[351629762,1738674638223,-500.0,9.991e-05,2]
[351629763,1738674638231,-500.0,9.991e-05,2]
[351629765,1738674638241,-500.0,9.991e-05,2]
[351629768,1738674638251,-500.0,9.991e-05,2]
[351629769,1738674638260,-500.0,9.991e-05,2]
[351629771,1738674638269,-500.0,9.991e-05,2]
[351629773,1738674638278,-500.0,9.991e-05,2]
[351629775,1738674638288,-294.47755,9.991e-05,2]
[351629777,1738674638297,-500.0,9.991e-05,2]
[351629779,1738674638306,-500.0,9.991e-05,2]
[351629781,1738674638315,-99.35699718,9.991e-05,2]
[351629798,1738674638583,-400.64300282,9.991e-05,2]
[351629800,1738674638596,-500.0,9.991e-05,2]
[351629802,1738674638606,-306.274305,9.991e-05,2]
[351629804,1738674638615,-500.0,9.991e-05,2]
[351629806,1738674638626,-227.37,9.991e-05,2]
[351629808,1738674638635,-500.0,9.991e-05,2]
[351629810,1738674638644,-500.0,9.991e-05,2]
[351629812,1738674638655,-500.0,9.991e-05,2]
[351629814,1738674638664,-500.0,9.991e-05,2]
[351629816,1738674638674,-500.0,9.991e-05,2]
[351629818,1738674638683,-371.29792101,9.991e-05,2]
[351629820,1738674638692,-500.0,9.991e-05,2]
[351629822,1738674638701,-500.0,9.991e-05,2]
[351629824,1738674638711,-500.0,9.991e-05,2]
[351629827,1738674638720,-500.0,9.991e-05,2]
[351629828,1738674638730,-500.0,9.991e-05,2]
[351629830,1738674638739,-500.0,9.991e-05,2]
[351629832,1738674638748,-589.91,9.991e-05,2]
[351629834,1738674638757,-500.0,9.991e-05,2]
[351629836,1738674638766,-500.0,9.991e-05,2]
[351629837,1738674638776,-500.0,9.991e-05,2]
[351629839,1738674638785,-400.0,9.991e-05,2]
[351629841,1738674638794,-500.0,9.991e-05,2]
[351629843,1738674638803,-500.0,9.991e-05,2]
[351629844,1738674638812,-500.0,9.991e-05,2]
[351629845,1738674638822,-500.0,9.991e-05,2]
[351629846,1738674638831,-500.28146586,9.991e-05,2]
[351629847,1738674638842,-500.0,9.991e-05,2]
[351629848,1738674638851,-500.0,9.991e-05,2]
[351629851,1738674638861,-500.0,9.991e-05,2]
[351629852,1738674638870,-500.0,9.991e-05,2]
[351629854,1738674638879,-500.0,9.991e-05,2]
[351629856,1738674638888,-500.0,9.991e-05,2]
[351629858,1738674638898,-500.0,9.991e-05,2]
[351629860,1738674638907,-500.0,9.991e-05,2]
[351629862,1738674638916,-500.0,9.991e-05,2]
[351629864,1738674638925,-500.0,9.991e-05,2]
[351629866,1738674638935,-500.0,9.991e-05,2]
[351629867,1738674638944,-500.0,9.991e-05,2]
[351629868,1738674638953,-500.0,9.991e-05,2]
[351629870,1738674638963,-500.0,9.991e-05,2]
[351629872,1738674638972,-500.0,9.991e-05,2]
[351629874,1738674638983,-500.0,9.991e-05,2]
[351629876,1738674638993,-500.0,9.991e-05,2]
[351629878,1738674639003,-500.0,9.991e-05,2]
[351629880,1738674639013,-500.0,9.991e-05,2]
[351629881,1738674639023,-500.0,9.991e-05,2]
[351629883,1738674639032,-500.0,9.991e-05,2]
[351629885,1738674639041,-500.0,9.991e-05,2]
[351629887,1738674639050,-500.0,9.991e-05,2]
[351629889,1738674639060,-500.0,9.991e-05,2]
[351629891,1738674639070,-500.0,9.991e-05,2]
[351629893,1738674639079,-586.82,9.991e-05,2]
[351629895,1738674639091,-501.351091,9.991e-05,2]
[351629897,1738674639100,-500.0,9.991e-05,2]
[351629899,1738674639109,-500.0,9.991e-05,2]
[351629901,1738674639119,-502.45588604,9.991e-05,2]
[351629903,1738674639128,-500.0,9.991e-05,2]
[351629905,1738674639137,-500.0,9.991e-05,2]
[351629907,1738674639147,-408.73422175,9.991e-05,2]
[351629909,1738674639157,-500.0,9.991e-05,2]
[351629910,1738674639166,-420.88747049,9.991e-05,2]
[351629911,1738674639175,-500.0,9.991e-05,2]
[351629912,1738674639184,-500.0,9.991e-05,2]
[351629913,1738674639193,-500.0,9.991e-05,2]
[351629914,1738674639202,-500.0,9.991e-05,2]
[351629915,1738674639212,-500.0,9.991e-05,2]
[351629916,1738674639221,-500.0,9.991e-05,2]
[351629917,1738674639230,-500.0,9.991e-05,2]
[351629918,1738674639239,-500.0,9.991e-05,2]
[351629919,1738674639248,-500.0,9.991e-05,2]
[351629920,1738674639257,-500.0,9.991e-05,2]
[351629921,1738674639266,-500.0,9.991e-05,2]
[351629922,1738674639275,-647.11734709,9.991e-05,2]
[351629923,1738674639284,-500.0,9.991e-05,2]
[351629924,1738674639293,-500.0,9.991e-05,2]
[351629925,1738674639302,-500.0,9.991e-05,2]
[351629926,1738674639311,-500.0,9.991e-05,2]
[351629927,1738674639321,-500.0,9.991e-05,2]
[351629928,1738674639330,-535.01,9.991e-05,2]
[351629929,1738674639342,-500.0,9.991e-05,2]
[351629930,1738674639351,-524.66,9.991e-05,2]
[351629931,1738674639361,-500.0,9.991e-05,2]
[351629932,1738674639370,-586.42714405,9.991e-05,2]
[351629933,1738674639379,-500.0,9.991e-05,2]
[351629934,1738674639389,-500.0,9.991e-05,2]
[351629935,1738674639398,-500.0,9.991e-05,2]
[351629936,1738674639407,-500.0,9.991e-05,2]
[351629937,1738674639417,-500.0,9.991e-05,2]
[351629938,1738674639426,-500.0,9.991e-05,2]
[351629939,1738674639436,-500.0,9.991e-05,2]
[351629940,1738674639445,-500.0,9.991e-05,2]
[351629941,1738674639454,-500.0,9.991e-05,2]
[351629942,1738674639464,-500.0,9.991e-05,2]
[351629943,1738674639473,-589.36,9.991e-05,2]
[351629944,1738674639484,-712.81,9.991e-05,2]
[351629945,1738674639494,-500.0,9.991e-05,2]
[351629946,1738674639503,-500.0,9.991e-05,2]
[351629947,1738674639512,-500.0,9.991e-05,2]
[351629948,1738674639522,-500.0,9.991e-05,2]
[351629949,1738674639531,-500.0,9.991e-05,2]
[351629950,1738674639541,-500.0,9.991e-05,2]
[351629951,1738674639550,-510.2,9.991e-05,2]
[351629952,1738674639560,-2132.65,9.991e-05,2]
[351629953,1738674639569,-500.0,9.991e-05,2]
[351629954,1738674639578,-500.0,9.991e-05,2]
[351629955,1738674639589,-500.0,9.991e-05,2]
[351629956,1738674639599,-500.0,9.991e-05,2]
[351629957,1738674639608,-608.26,9.991e-05,2]
[351629958,1738674639617,-821.55,9.991e-05,2]
[351629959,1738674639627,-500.0,9.991e-05,2]
[351629960,1738674639639,-514.76,9.991e-05,2]
[351629961,1738674639649,-500.0,9.991e-05,2]
[351629962,1738674639658,-500.0,9.991e-05,2]
[351629963,1738674639668,-64.87756481,9.991e-05,2]
[351629964,1738674639702,-372.66569951,9.991e-05,2]
[351629965,1738674639717,-62.45673568,9.991e-05,2]
[351629966,1738674639727,-350.91495927,9.991e-05,2]
[351629967,1738674639771,-149.08504073,9.991e-05,2]
[351629968,1738674639781,-546.31,9.991e-05,2]
[351629969,1738674639790,-500.0,9.991e-05,2]
[351629970,1738674639799,-525.59,9.991e-05,2]
[351629971,1738674639809,-500.0,9.991e-05,2]
[351629972,1738674639818,-500.0,9.991e-05,2]
[351629973,1738674639827,-500.0,9.991e-05,2]
[351629974,1738674639838,-500.0,9.991e-05,2]
[351629975,1738674639847,-500.0,9.991e-05,2]
[351629976,1738674639856,-500.0,9.991e-05,2]
[351629977,1738674639865,-500.0,9.991e-05,2]
[351629978,1738674639875,-500.0,9.991e-05,2]
[351629979,1738674639884,-809.27,9.991e-05,2]
[351629980,1738674639894,-835.71,9.991e-05,2]
[351629981,1738674639903,-500.0,9.991e-05,2]
[351629982,1738674639912,-500.0,9.991e-05,2]
[351629983,1738674639922,-500.0,9.991e-05,2]
[351629984,1738674639931,-830.81,9.991e-05,2]
[351629985,1738674639941,-500.0,9.991e-05,2]
[351629986,1738674639950,-500.0,9.991e-05,2]
[351629987,1738674639959,-500.0,9.991e-05,2]
[351629988,1738674639968,-500.0,9.991e-05,2]
[351629989,1738674639978,-500.0,9.991e-05,2]
[351629990,1738674639991,-522.71,9.991e-05,2]
[351629991,1738674640001,-500.0,9.991e-05,2]
[351629992,1738674640011,-500.0,9.991e-05,2]
[351629993,1738674640020,-500.0,9.991e-05,2]
[351629994,1738674640030,-541.28,9.991e-05,2]
[351629995,1738674640040,-500.0,9.991e-05,2]
[351629996,1738674640049,-500.0,9.991e-05,2]
[351629997,1738674640059,-500.0,9.991e-05,2]
[351629998,1738674640069,-500.0,9.991e-05,2]
[351629999,1738674640079,-500.0,9.991e-05,2]
[351630000,1738674640090,-500.0,9.991e-05,2]
[351630001,1738674640099,-500.0,9.991e-05,2]
[351630002,1738674640108,-729.24,9.991e-05,2]
[351630003,1738674640118,-500.0,9.991e-05,2]
[351630004,1738674640130,-500.0,9.991e-05,2]
[351630005,1738674640139,-500.0,9.991e-05,2]
[351630006,1738674640149,-652.58,9.991e-05,2]
[351630007,1738674640158,-500.0,9.991e-05,2]
[351630008,1738674640167,-543.22,9.991e-05,2]
[351630009,1738674640177,-500.0,9.991e-05,2]
[351630010,1738674640187,-632.71,9.991e-05,2]
[351630011,1738674640196,-500.0,9.991e-05,2]
[351630012,1738674640206,-500.0,9.991e-05,2]
[351630013,1738674640216,-500.0,9.991e-05,2]
[351630014,1738674640225,-500.0,9.991e-05,2]
[351630015,1738674640236,-500.85,9.991e-05,2]
[351630016,1738674640246,-500.0,9.991e-05,2]
[351630017,1738674640255,-500.0,9.991e-05,2]
[351630018,1738674640265,-662.79,9.991e-05,2]
[351630020,1738674640274,-500.0,9.991e-05,2]
[351630022,1738674640283,-500.0,9.991e-05,2]
[351630023,1738674640293,-624.79,9.991e-05,2]
[351630025,1738674640302,-500.0,9.991e-05,2]
[351630027,1738674640312,-520.75,9.991e-05,2]
[351630028,1738674640321,-813.82,9.991e-05,2]
[351630029,1738674640330,-976.04,9.991e-05,2]
[351630030,1738674640341,-500.0,9.991e-05,2]
[351630031,1738674640350,-500.0,9.991e-05,2]
[351630032,1738674640359,-500.0,9.991e-05,2]
[351630033,1738674640368,-379.23023599,9.991e-05,2]
[351630034,1738674640378,-500.0,9.991e-05,2]
[351630035,1738674640387,-500.0,9.991e-05,2]
[351630036,1738674640397,-500.0,9.991e-05,2]
[351630037,1738674640407,-500.0,9.991e-05,2]
[351630038,1738674640416,-578.99,9.991e-05,2]
[351630039,1738674640425,-525.33,9.991e-05,2]
[351630040,1738674640435,-500.0,9.991e-05,2]
[351630041,1738674640444,-500.0,9.991e-05,2]
[351630042,1738674640453,-500.0,9.991e-05,2]
[351630043,1738674640462,-500.0,9.991e-05,2]
[351630044,1738674640471,-829.97,9.991e-05,2]
[351630045,1738674640481,-518.579472,9.991e-05,2]
[351630046,1738674640490,-500.0,9.991e-05,2]
[351630047,1738674640499,-500.0,9.991e-05,2]
[351630048,1738674640508,-693.95,9.991e-05,2]
[351630049,1738674640518,-500.0,9.991e-05,2]
[351630050,1738674640527,-500.0,9.991e-05,2]
[351630051,1738674640536,-500.0,9.991e-05,2]
[351630052,1738674640546,-505.22,9.991e-05,2]
[351630053,1738674640555,-500.0,9.991e-05,2]
[351630054,1738674640564,-821.04,9.991e-05,2]
[351630055,1738674640573,-500.0,9.991e-05,2]
[351630056,1738674640583,-500.0,9.991e-05,2]
[351630057,1738674640593,-500.0,9.991e-05,2]
[351630058,1738674640603,-566.27,9.991e-05,2]
[351630059,1738674640612,-500.0,9.991e-05,2]
[351630060,1738674640622,-500.0,9.991e-05,2]
[351630061,1738674640631,-500.0,9.991e-05,2]
[351630062,1738674640640,-500.0,9.991e-05,2]
[351630063,1738674640700,-50013.95858715,9.992e-05,2]
[351630064,1738674640869,-113096.20262722,9.992e-05,2]
[351630065,1738674640879,-1239.0882823,9.992e-05,2]
[351630066,1738674640888,-1619.8775606,9.992e-05,2]
[351630067,1738674640898,-5456.2112834,9.992e-05,2]
[351630068,1738674640908,-1152.3270731,9.992e-05,2]
[351630069,1738674640917,-1285.43076066,9.999e-05,3]
[351630070,1738674640927,-632.56,9.999e-05,2]
[351630071,1738674640937,-500.0,9.999e-05,2]
[351630072,1738674640946,-500.0,9.999e-05,2]
[351630073,1738674640955,-500.0,9.999e-05,2]
[351630074,1738674640964,-500.0,9.999e-05,2]
[351630075,1738674640974,-500.0,9.999e-05,2]
[351630076,1738674640986,-501.5,9.999e-05,2]
[351630077,1738674640997,-1000.0,9.999e-05,2]
[351630078,1738674641006,-500.0,9.999e-05,2]
[351630079,1738674641016,-500.0,9.999e-05,2]
[351630080,1738674641026,-613.39,9.999e-05,2]
[351630081,1738674641036,-533.4,9.999e-05,2]
[351630082,1738674641047,-150.0,9.999e-05,2]
[351630083,1738674641059,-701.0,0.0001,2]
[351630084,1738674641069,-52706.02346958,0.0001,2]
[351630085,1738674641083,-28.48357509,0.0001,2]
[351630086,1738674641093,-500.0,0.0001,2]
[351630087,1738674641102,-3354.67142491,0.0001,2]
[351630088,1738674641115,-4676.235,0.0001,2]
[351630089,1738674641428,-562.29,9.991e-05,2]
[351630090,1738674641438,-1419.92109109,0.0001,2]
[351630091,1738674641450,-284.17498486,0.0001,2]
[351630092,1738674641464,-3975.714984,0.0001,2]
[351630093,1738674641489,-32323.12756008,0.0001,2]
[351630094,1738674641501,-625.42636932,0.0001,2]
[351630095,1738674641516,-23715.66992787,0.0001,2]
[351630096,1738674641534,-993.6560341,0.0001,2]
[351630097,1738674641545,-716.33181701,0.0001,2]
[351630103,1738674642805,-500.0,9.991e-05,2]
[351630104,1738674642815,-573.03,9.991e-05,2]
[351630105,1738674642824,-500.0,9.991e-05,2]
[351630106,1738674642833,-23282.97,0.0001,2]
[351630107,1738674642851,-7635.25000001,0.0001,2]
[351630108,1738674642870,-308.400007,9.991e-05,2]